[Event "Titled Tuesday Blitz December 14 2021"]
[White "Suvorov, Luca"]
[Black "Azadaliyev, Jahandar"]
[WhiteFideId "12977071"]
[BlackFideId "13425811"]
[WhiteElo "2127"]
[BlackElo "1795"]
[Result "1/2-1/2"]
[Round "01"]
[TimeControl "180+1"]
[Date "2021.12.15"]
[WhiteClock "0:00:01"]
[BlackClock "0:00:07"]

1. d4 {[%clk 0:02:55]}  Nf6 {[%clk 0:02:59]} 2. c4 {[%clk 0:02:55]}  e6 {[%clk 0:02:59]} 3. Nc3 {[%clk 0:02:53]}  Bb4 {[%clk 0:02:59]} 4. e3 {[%clk 0:02:53]}  O-O {[%clk 0:02:56]} 5. Ne2 {[%clk 0:02:52]}  d5 {[%clk 0:02:56]} 6. a3 {[%clk 0:02:52]}  Bxc3+ {[%clk 0:02:54]} 7. Nxc3 {[%clk 0:02:51]}  Nbd7 {[%clk 0:02:54]} 8. cxd5 {[%clk 0:02:48]}  exd5 {[%clk 0:02:55]} 9. Bd3 {[%clk 0:02:47]}  Re8 {[%clk 0:02:54]} 10. O-O {[%clk 0:02:44]}  Nf8 {[%clk 0:02:52]} 11. b4 {[%clk 0:02:37]}  Bg4 {[%clk 0:02:46]} 12. Qc2 {[%clk 0:02:36]}  Bh5 {[%clk 0:02:35]} 13. f4 {[%clk 0:02:15]}  c6 {[%clk 0:02:29]} 14. h3 {[%clk 0:02:10]}  h6 {[%clk 0:02:16]} 15. f5 {[%clk 0:01:44]}  Qd6 {[%clk 0:02:03]} 16. Qf2 {[%clk 0:01:38]}  Ne4 {[%clk 0:01:56]} 17. Bxe4 {[%clk 0:01:36]}  dxe4 {[%clk 0:01:57]} 18. g4 {[%clk 0:01:35]}  Qf6 {[%clk 0:01:53]} 19. gxh5 {[%clk 0:01:33]}  Rad8 {[%clk 0:01:46]} 20. Qf4 {[%clk 0:01:05]}  Nd7 {[%clk 0:01:27]} 21. Nxe4 {[%clk 0:00:47]}  Qe7 {[%clk 0:01:26]} 22. Nd6 {[%clk 0:00:46]}  Rf8 {[%clk 0:01:25]} 23. e4 {[%clk 0:00:45]}  Nf6 {[%clk 0:01:21]} 24. e5 {[%clk 0:00:43]}  Nd5 {[%clk 0:01:21]} 25. Qg4 {[%clk 0:00:40]}  f6 {[%clk 0:01:20]} 26. Bf4 {[%clk 0:00:20]}  b6 {[%clk 0:01:09]} 27. Rae1 {[%clk 0:00:19]}  Qd7 {[%clk 0:01:04]} 28. Bxh6 {[%clk 0:00:15]}  Kh8 {[%clk 0:01:00]} 29. Bd2 {[%clk 0:00:14]}  c5 {[%clk 0:01:00]} 30. Qg6 {[%clk 0:00:14]}  cxd4 {[%clk 0:00:54]} 31. h6 {[%clk 0:00:11]}  fxe5 {[%clk 0:00:52]} 32. hxg7+ {[%clk 0:00:09]}  Qxg7 {[%clk 0:00:53]} 33. Ne4 {[%clk 0:00:08]}  Rg8 {[%clk 0:00:49]} 34. Qxg7+ {[%clk 0:00:08]}  Rxg7+ {[%clk 0:00:50]} 35. Kh2 {[%clk 0:00:08]}  Rc7 {[%clk 0:00:49]} 36. Rf2 {[%clk 0:00:08]}  Rc2 {[%clk 0:00:47]} 37. Ref1 {[%clk 0:00:08]}  Kg8 {[%clk 0:00:44]} 38. f6 {[%clk 0:00:08]}  Kf7 {[%clk 0:00:38]} 39. Ng5+ {[%clk 0:00:08]}  Kg6 {[%clk 0:00:37]} 40. Ne4 {[%clk 0:00:07]}  Rf8 {[%clk 0:00:30]} 41. Rg2+ {[%clk 0:00:04]}  Kf7 {[%clk 0:00:30]} 42. Rg7+ {[%clk 0:00:04]}  Ke6 {[%clk 0:00:29]} 43. Rg2 {[%clk 0:00:02]}  d3 {[%clk 0:00:29]} 44. Rgf2 {[%clk 0:00:02]}  b5 {[%clk 0:00:26]} 45. Ng5+ {[%clk 0:00:02]}  Kd7 {[%clk 0:00:25]} 46. f7 {[%clk 0:00:03]}  Ne7 {[%clk 0:00:22]} 47. Nh7 {[%clk 0:00:03]}  Rxf7 {[%clk 0:00:22]} 48. Rxf7 {[%clk 0:00:04]}  Rxd2+ {[%clk 0:00:22]} 49. R7f2 {[%clk 0:00:04]}  Rxf2+ {[%clk 0:00:19]} 50. Rxf2 {[%clk 0:00:05]}  e4 {[%clk 0:00:20]} 51. Nf6+ {[%clk 0:00:06]}  Ke6 {[%clk 0:00:20]} 52. Nxe4 {[%clk 0:00:07]}  Ke5 {[%clk 0:00:21]} 53. Nd2 {[%clk 0:00:07]}  Kd4 {[%clk 0:00:22]} 54. Rf3 {[%clk 0:00:08]}  Nd5 {[%clk 0:00:21]} 55. Nf1 {[%clk 0:00:07]}  Kc3 {[%clk 0:00:21]} 56. Rf2 {[%clk 0:00:07]}  Kb3 {[%clk 0:00:19]} 57. h4 {[%clk 0:00:07]}  Kxa3 {[%clk 0:00:19]} 58. h5 {[%clk 0:00:08]}  Ne3 {[%clk 0:00:19]} 59. h6 {[%clk 0:00:08]}  Ng4+ {[%clk 0:00:19]} 60. Kg3 {[%clk 0:00:09]}  Nxh6 {[%clk 0:00:19]} 61. Rd2 {[%clk 0:00:09]}  Kxb4 {[%clk 0:00:19]} 62. Rxd3 {[%clk 0:00:09]}  Nf5+ {[%clk 0:00:20]} 63. Kf4 {[%clk 0:00:09]}  Ne7 {[%clk 0:00:20]} 64. Rd6 {[%clk 0:00:09]}  a5 {[%clk 0:00:19]} 65. Ne3 {[%clk 0:00:09]}  a4 {[%clk 0:00:20]} 66. Rd7 {[%clk 0:00:09]}  Nc6 {[%clk 0:00:20]} 67. Rd6 {[%clk 0:00:08]}  Kc5 {[%clk 0:00:19]} 68. Rd5+ {[%clk 0:00:08]}  Kb4 {[%clk 0:00:20]} 69. Ke4 {[%clk 0:00:08]}  a3 {[%clk 0:00:19]} 70. Rd3 {[%clk 0:00:06]}  Na5 {[%clk 0:00:18]} 71. Nc2+ {[%clk 0:00:06]}  Kc4 {[%clk 0:00:18]} 72. Rxa3 {[%clk 0:00:05]}  Nc6 {[%clk 0:00:18]} 73. Rd3 {[%clk 0:00:04]}  Na5 {[%clk 0:00:11]} 74. Ne3+ {[%clk 0:00:04]}  Kb4 {[%clk 0:00:11]} 75. Kd5 {[%clk 0:00:04]}  Nb3 {[%clk 0:00:07]} 76. Nc2+ {[%clk 0:00:04]}  Ka4 {[%clk 0:00:08]} 77. Kc6 {[%clk 0:00:03]}  b4 {[%clk 0:00:07]} 78. Kb6 {[%clk 0:00:02]}  Na5 {[%clk 0:00:08]} 79. Rd1 {[%clk 0:00:02]}  Nc4+ {[%clk 0:00:07]} 80. Kc5 {[%clk 0:00:02]}  Nb2 {[%clk 0:00:06]} 81. Rb1 {[%clk 0:00:02]}  Nd3+ {[%clk 0:00:06]} 82. Kc4 {[%clk 0:00:02]}  Ne5+ {[%clk 0:00:06]} 83. Kd4 {[%clk 0:00:01]}  Nc6+ {[%clk 0:00:07]} 84. Kc5 {[%clk 0:00:01]}  Ne5 {[%clk 0:00:06]} 85. Rxb4+ {[%clk 0:00:01]}  Ka5 {[%clk 0:00:07]} 86. Rd4 {[%clk 0:00:01]}  Ka6 {[%clk 0:00:07]} 1/2-1/2


[Site "https://www.chess.com"]

[Event "Titled Tuesday Blitz December 14 2021"]
[White "Svane, Frederik"]
[Black "Ingebretsen, Jens E"]
[WhiteFideId "12923044"]
[BlackFideId "1522965"]
[WhiteElo "2459"]
[BlackElo "2072"]
[Result "1-0"]
[Round "01"]
[TimeControl "180+1"]
[Date "2021.12.15"]
[WhiteClock "0:00:06"]
[BlackClock "0:00:03"]

1. e4 {[%clk 0:03:00]}  e5 {[%clk 0:02:59]} 2. Nf3 {[%clk 0:03:00]}  Nc6 {[%clk 0:02:58]} 3. Bb5 {[%clk 0:03:00]}  a6 {[%clk 0:02:59]} 4. Ba4 {[%clk 0:03:01]}  Nf6 {[%clk 0:02:59]} 5. O-O {[%clk 0:03:01]}  b5 {[%clk 0:03:00]} 6. Bb3 {[%clk 0:03:02]}  Bc5 {[%clk 0:03:01]} 7. Nc3 {[%clk 0:02:59]}  O-O {[%clk 0:03:00]} 8. a4 {[%clk 0:02:52]}  Rb8 {[%clk 0:02:57]} 9. Nd5 {[%clk 0:02:50]}  d6 {[%clk 0:02:38]} 10. c3 {[%clk 0:02:15]}  Nxd5 {[%clk 0:02:33]} 11. exd5 {[%clk 0:02:12]}  Ne7 {[%clk 0:02:30]} 12. axb5 {[%clk 0:02:10]}  axb5 {[%clk 0:02:31]} 13. d4 {[%clk 0:02:10]}  exd4 {[%clk 0:02:30]} 14. Nxd4 {[%clk 0:02:11]}  b4 {[%clk 0:02:23]} 15. Bg5 {[%clk 0:02:01]}  f6 {[%clk 0:02:13]} 16. Be3 {[%clk 0:01:56]}  bxc3 {[%clk 0:02:05]} 17. bxc3 {[%clk 0:01:43]}  Kh8 {[%clk 0:01:48]} 18. Bc2 {[%clk 0:01:25]}  Bxd4 {[%clk 0:01:41]} 19. Qxd4 {[%clk 0:01:25]}  Bf5 {[%clk 0:01:33]} 20. Ba4 {[%clk 0:01:25]}  Bg6 {[%clk 0:01:25]} 21. Bf4 {[%clk 0:01:13]}  Qc8 {[%clk 0:01:13]} 22. Rfe1 {[%clk 0:01:10]}  Nf5 {[%clk 0:01:13]} 23. Qd2 {[%clk 0:01:10]}  Qb7 {[%clk 0:01:04]} 24. Bc6 {[%clk 0:01:07]}  Qb2 {[%clk 0:01:03]} 25. Qxb2 {[%clk 0:01:07]}  Rxb2 {[%clk 0:01:03]} 26. Ra7 {[%clk 0:01:04]}  Rc8 {[%clk 0:00:34]} 27. Bd7 {[%clk 0:01:01]}  Rcb8 {[%clk 0:00:33]} 28. Rxc7 {[%clk 0:00:54]}  Rb1 {[%clk 0:00:33]} 29. Kf1 {[%clk 0:00:47]}  h6 {[%clk 0:00:18]} 30. Rxb1 {[%clk 0:00:31]}  Rxb1+ {[%clk 0:00:18]} 31. Ke2 {[%clk 0:00:32]}  Rb2+ {[%clk 0:00:17]} 32. Kf3 {[%clk 0:00:23]}  Rc2 {[%clk 0:00:09]} 33. Bxf5 {[%clk 0:00:16]}  Bxf5 {[%clk 0:00:10]} 34. Bxd6 {[%clk 0:00:17]}  Rd2 {[%clk 0:00:10]} 35. c4 {[%clk 0:00:15]}  Rd4 {[%clk 0:00:10]} 36. Ke3 {[%clk 0:00:10]}  Rd3+ {[%clk 0:00:10]} 37. Ke2 {[%clk 0:00:10]}  Rc3 {[%clk 0:00:10]} 38. Kd2 {[%clk 0:00:10]}  Rc2+ {[%clk 0:00:10]} 39. Ke3 {[%clk 0:00:10]}  Rc3+ {[%clk 0:00:10]} 40. Kd4 {[%clk 0:00:10]}  Rd3+ {[%clk 0:00:10]} 41. Kc5 {[%clk 0:00:11]}  Rd2 {[%clk 0:00:11]} 42. Bg3 {[%clk 0:00:11]}  Rc2 {[%clk 0:00:11]} 43. Kd6 {[%clk 0:00:12]}  Rd2 {[%clk 0:00:10]} 44. Re7 {[%clk 0:00:10]}  Bd3 {[%clk 0:00:08]} 45. Rc7 {[%clk 0:00:06]}  Be4 {[%clk 0:00:07]} 46. f3 {[%clk 0:00:04]}  Bb1 {[%clk 0:00:04]} 47. Rc8+ {[%clk 0:00:03]}  Kh7 {[%clk 0:00:05]} 48. Kc7 {[%clk 0:00:04]}  Ba2 {[%clk 0:00:04]} 49. Kd6 {[%clk 0:00:02]}  Rxg2 {[%clk 0:00:04]} 50. c5 {[%clk 0:00:02]}  Rd2 {[%clk 0:00:04]} 51. Kc7 {[%clk 0:00:03]}  Bxd5 {[%clk 0:00:04]} 52. c6 {[%clk 0:00:03]}  Rc2 {[%clk 0:00:04]} 53. Kd6 {[%clk 0:00:03]}  Bxf3 {[%clk 0:00:04]} 54. c7 {[%clk 0:00:04]}  Bg4 {[%clk 0:00:04]} 55. Rd8 {[%clk 0:00:04]}  Rd2+ {[%clk 0:00:05]} 56. Kc5 {[%clk 0:00:05]}  Rc2+ {[%clk 0:00:05]} 57. Kd4 {[%clk 0:00:05]}  Rd2+ {[%clk 0:00:04]} 58. Ke3 {[%clk 0:00:06]}  Rc2 {[%clk 0:00:05]} 59. Bd6 {[%clk 0:00:05]}  Be6 {[%clk 0:00:05]} 60. Kf4 {[%clk 0:00:06]}  Rxh2 {[%clk 0:00:05]} 61. c8=Q {[%clk 0:00:05]}  Bxc8 {[%clk 0:00:05]} 62. Rxc8 {[%clk 0:00:06]}  Rh4+ {[%clk 0:00:06]} 63. Kg3 {[%clk 0:00:06]}  Rd4 {[%clk 0:00:06]} 64. Bc5 {[%clk 0:00:06]}  Rd7 {[%clk 0:00:07]} 65. Rc6 {[%clk 0:00:06]}  Rf7 {[%clk 0:00:07]} 66. Be3 {[%clk 0:00:06]}  Rb7 {[%clk 0:00:08]} 67. Kf3 {[%clk 0:00:06]}  Rb3 {[%clk 0:00:08]} 68. Ke4 {[%clk 0:00:07]}  Rb4+ {[%clk 0:00:09]} 69. Kf3 {[%clk 0:00:07]}  Rb7 {[%clk 0:00:10]} 70. Bc5 {[%clk 0:00:07]}  h5 {[%clk 0:00:10]} 71. Kf4 {[%clk 0:00:07]}  Kg6 {[%clk 0:00:10]} 72. Be3 {[%clk 0:00:06]}  Rb4+ {[%clk 0:00:11]} 73. Kf3 {[%clk 0:00:07]}  h4 {[%clk 0:00:11]} 74. Rc5 {[%clk 0:00:06]}  Ra4 {[%clk 0:00:11]} 75. Bf4 {[%clk 0:00:06]}  f5 {[%clk 0:00:10]} 76. Rc6+ {[%clk 0:00:06]}  Kh5 {[%clk 0:00:10]} 77. Rc8 {[%clk 0:00:07]}  g5 {[%clk 0:00:11]} 78. Rh8+ {[%clk 0:00:06]}  Kg6 {[%clk 0:00:11]} 79. Rg8+ {[%clk 0:00:07]}  Kf6 {[%clk 0:00:10]} 80. Bxg5+ {[%clk 0:00:07]}  Kf7 {[%clk 0:00:09]} 81. Rb8 {[%clk 0:00:06]}  Rg4 {[%clk 0:00:09]} 82. Bf4 {[%clk 0:00:06]}  Kg7 {[%clk 0:00:07]} 83. Rb7+ {[%clk 0:00:06]}  Kg6 {[%clk 0:00:07]} 84. Rb8 {[%clk 0:00:06]}  Kg7 {[%clk 0:00:08]} 85. Be5+ {[%clk 0:00:07]}  Kf7 {[%clk 0:00:08]} 86. Rh8 {[%clk 0:00:07]}  Ke6 {[%clk 0:00:08]} 87. Bf4 {[%clk 0:00:07]}  Kf7 {[%clk 0:00:07]} 88. Be3 {[%clk 0:00:06]}  Kg6 {[%clk 0:00:07]} 89. Bf2 {[%clk 0:00:06]}  Kf7 {[%clk 0:00:04]} 90. Rh5 {[%clk 0:00:05]}  Kg6 {[%clk 0:00:04]} 91. Rh8 {[%clk 0:00:05]}  Kg7 {[%clk 0:00:05]} 92. Rc8 {[%clk 0:00:05]}  Kg6 {[%clk 0:00:05]} 93. Rc6+ {[%clk 0:00:05]}  Kf7 {[%clk 0:00:05]} 94. Rc1 {[%clk 0:00:04]}  Kg6 {[%clk 0:00:06]} 95. Rh1 {[%clk 0:00:05]}  Kg5 {[%clk 0:00:06]} 96. Be3+ {[%clk 0:00:05]}  Kg6 {[%clk 0:00:07]} 97. Bf4 {[%clk 0:00:04]}  Kh5 {[%clk 0:00:06]} 98. Rh2 {[%clk 0:00:05]}  Kg6 {[%clk 0:00:07]} 99. Re2 {[%clk 0:00:06]}  Kf6 {[%clk 0:00:07]} 100. Rb2 {[%clk 0:00:06]}  Ke6 {[%clk 0:00:07]} 101. Rb6+ {[%clk 0:00:06]}  Kf7 {[%clk 0:00:08]} 102. Be3 {[%clk 0:00:06]}  Kg7 {[%clk 0:00:06]} 103. Bf2 {[%clk 0:00:05]}  Kf7 {[%clk 0:00:05]} 104. Be1 {[%clk 0:00:05]}  Kg7 {[%clk 0:00:05]} 105. Bc3+ {[%clk 0:00:05]}  Kf7 {[%clk 0:00:06]} 106. Be5 {[%clk 0:00:05]}  Ke7 {[%clk 0:00:05]} 107. Rf6 {[%clk 0:00:05]}  Kd7 {[%clk 0:00:04]} 108. Rxf5 {[%clk 0:00:04]}  Ra4 {[%clk 0:00:04]} 109. Rh5 {[%clk 0:00:04]}  Ke6 {[%clk 0:00:04]} 110. Bf4 {[%clk 0:00:04]}  Ra3+ {[%clk 0:00:04]} 111. Kg4 {[%clk 0:00:04]}  Ra1 {[%clk 0:00:05]} 112. Rxh4 {[%clk 0:00:04]}  Rg1+ {[%clk 0:00:05]} 113. Bg3 {[%clk 0:00:04]}  Rb1 {[%clk 0:00:06]} 114. Rh6+ {[%clk 0:00:05]}  Kd5 {[%clk 0:00:06]} 115. Kf5 {[%clk 0:00:05]}  Rf1+ {[%clk 0:00:06]} 116. Bf4 {[%clk 0:00:06]}  Kc5 {[%clk 0:00:06]} 117. Rh8 {[%clk 0:00:06]}  Kb5 {[%clk 0:00:06]} 118. Rc8 {[%clk 0:00:06]}  Ka4 {[%clk 0:00:06]} 119. Ke5 {[%clk 0:00:06]}  Rh1 {[%clk 0:00:06]} 120. Be3 {[%clk 0:00:06]}  Rh5+ {[%clk 0:00:06]} 121. Kd4 {[%clk 0:00:06]}  Rh4+ {[%clk 0:00:07]} 122. Kd3 {[%clk 0:00:06]}  Rg4 {[%clk 0:00:07]} 123. Rb8 {[%clk 0:00:07]}  Ka5 {[%clk 0:00:06]} 124. Bd4 {[%clk 0:00:07]}  Rh4 {[%clk 0:00:04]} 125. Kc4 {[%clk 0:00:07]}  Ka6 {[%clk 0:00:05]} 126. Rb6+ {[%clk 0:00:06]}  Ka5 {[%clk 0:00:05]} 127. Rb7 {[%clk 0:00:04]}  Rh6 {[%clk 0:00:04]} 128. Bc5 {[%clk 0:00:04]}  Rc6 {[%clk 0:00:03]} 129. Rb2 {[%clk 0:00:02]}  Ka6 {[%clk 0:00:03]} 130. Rb8 {[%clk 0:00:02]}  Ka5 {[%clk 0:00:02]} 131. Ra8+ {[%clk 0:00:02]}  Ra6 {[%clk 0:00:02]} 132. Re8 {[%clk 0:00:03]}  Rc6 {[%clk 0:00:02]} 133. Re7 {[%clk 0:00:03]}  Rg6 {[%clk 0:00:01]} 134. Bd4 {[%clk 0:00:04]}  Rd6 {[%clk 0:00:01]} 135. Rb7 {[%clk 0:00:04]}  Ra6 {[%clk 0:00:02]} 136. Rb5+ {[%clk 0:00:04]}  Ka4 {[%clk 0:00:02]} 137. Rb1 {[%clk 0:00:05]}  Rc6+ {[%clk 0:00:03]} 138. Bc5 {[%clk 0:00:06]}  Rh6 {[%clk 0:00:03]} 139. Ra1# {[%clk 0:00:06]} 1-0


[Site "https://www.chess.com"]

[Event "Titled Tuesday Blitz December 14 2021"]
[White "Tari, Aryan"]
[Black "Rozhkov, Viacheslav"]
[WhiteFideId "1510045"]
[BlackFideId "4181484"]
[WhiteElo "2656"]
[BlackElo "2324"]
[Result "1-0"]
[Round "01"]
[TimeControl "180+1"]
[Date "2021.12.14"]
[WhiteClock "0:00:06"]
[BlackClock "0:00:08"]

1. e4 {[%clk 0:03:00]}  c5 {[%clk 0:02:33]} 2. Nc3 {[%clk 0:02:59]}  Nc6 {[%clk 0:02:33]} 3. f4 {[%clk 0:02:59]}  g6 {[%clk 0:02:31]} 4. Nf3 {[%clk 0:02:59]}  Bg7 {[%clk 0:02:31]} 5. Bb5 {[%clk 0:03:00]}  a6 {[%clk 0:02:20]} 6. Bxc6 {[%clk 0:02:59]}  bxc6 {[%clk 0:02:21]} 7. d3 {[%clk 0:02:58]}  d5 {[%clk 0:02:17]} 8. e5 {[%clk 0:02:54]}  Nh6 {[%clk 0:02:15]} 9. h3 {[%clk 0:02:52]}  Nf5 {[%clk 0:02:12]} 10. O-O {[%clk 0:02:52]}  h5 {[%clk 0:02:10]} 11. Qe1 {[%clk 0:02:47]}  h4 {[%clk 0:02:08]} 12. Na4 {[%clk 0:02:43]}  c4 {[%clk 0:01:50]} 13. dxc4 {[%clk 0:02:42]}  dxc4 {[%clk 0:01:47]} 14. Be3 {[%clk 0:02:36]}  Be6 {[%clk 0:01:38]} 15. Nc5 {[%clk 0:02:25]}  Bd5 {[%clk 0:01:36]} 16. b3 {[%clk 0:02:17]}  e6 {[%clk 0:01:27]} 17. bxc4 {[%clk 0:02:05]}  Bxc4 {[%clk 0:01:26]} 18. Rf2 {[%clk 0:02:06]}  Bf8 {[%clk 0:01:26]} 19. Nd2 {[%clk 0:01:48]}  Qa5 {[%clk 0:00:59]} 20. Nce4 {[%clk 0:01:20]}  Bd5 {[%clk 0:00:48]} 21. Rb1 {[%clk 0:01:08]}  Bxe4 {[%clk 0:00:42]} 22. Nxe4 {[%clk 0:01:09]}  Qxe1+ {[%clk 0:00:38]} 23. Rxe1 {[%clk 0:01:09]}  Be7 {[%clk 0:00:37]} 24. Bc5 {[%clk 0:01:03]}  Bxc5 {[%clk 0:00:34]} 25. Nxc5 {[%clk 0:01:04]}  Ke7 {[%clk 0:00:31]} 26. Rb1 {[%clk 0:01:02]}  Rab8 {[%clk 0:00:31]} 27. Rb3 {[%clk 0:01:02]}  Rxb3 {[%clk 0:00:29]} 28. cxb3 {[%clk 0:00:58]}  Rd8 {[%clk 0:00:30]} 29. Rc2 {[%clk 0:00:58]}  Rd4 {[%clk 0:00:28]} 30. Nxa6 {[%clk 0:00:57]}  Rxf4 {[%clk 0:00:28]} 31. Nb8 {[%clk 0:00:51]}  c5 {[%clk 0:00:27]} 32. Rc1 {[%clk 0:00:44]}  Ng3 {[%clk 0:00:27]} 33. Rd1 {[%clk 0:00:37]}  Re4 {[%clk 0:00:21]} 34. a4 {[%clk 0:00:34]}  c4 {[%clk 0:00:18]} 35. bxc4 {[%clk 0:00:29]}  Rxc4 {[%clk 0:00:18]} 36. a5 {[%clk 0:00:30]}  Ra4 {[%clk 0:00:18]} 37. Nc6+ {[%clk 0:00:30]}  Kf8 {[%clk 0:00:17]} 38. Kf2 {[%clk 0:00:29]}  Ra2+ {[%clk 0:00:17]} 39. Kf3 {[%clk 0:00:29]}  Kg7 {[%clk 0:00:17]} 40. Rd7 {[%clk 0:00:21]}  g5 {[%clk 0:00:17]} 41. Ra7 {[%clk 0:00:17]}  Ra3+ {[%clk 0:00:18]} 42. Kg4 {[%clk 0:00:13]}  Kg6 {[%clk 0:00:17]} 43. Ne7+ {[%clk 0:00:14]}  Kh6 {[%clk 0:00:17]} 44. Ra8 {[%clk 0:00:10]}  Ra4+ {[%clk 0:00:16]} 45. Kf3 {[%clk 0:00:10]}  Ra3+ {[%clk 0:00:12]} 46. Kf2 {[%clk 0:00:11]}  Ne4+ {[%clk 0:00:12]} 47. Kf1 {[%clk 0:00:08]}  g4 {[%clk 0:00:11]} 48. hxg4 {[%clk 0:00:06]}  Kg5 {[%clk 0:00:12]} 49. a6 {[%clk 0:00:03]}  Kf4 {[%clk 0:00:12]} 50. a7 {[%clk 0:00:02]}  Ra2 {[%clk 0:00:09]} 51. Ke1 {[%clk 0:00:02]}  Ke3 {[%clk 0:00:09]} 52. Kd1 {[%clk 0:00:02]}  Nc3+ {[%clk 0:00:09]} 53. Kc1 {[%clk 0:00:03]}  Nb5 {[%clk 0:00:08]} 54. Nc6 {[%clk 0:00:02]}  Kf2 {[%clk 0:00:05]} 55. Rf8 {[%clk 0:00:02]}  Nxa7 {[%clk 0:00:05]} 56. Rxf7+ {[%clk 0:00:03]}  Kxg2 {[%clk 0:00:06]} 57. Nxa7 {[%clk 0:00:03]}  Ra1+ {[%clk 0:00:06]} 58. Kb2 {[%clk 0:00:03]}  Ra5 {[%clk 0:00:07]} 59. Nc6 {[%clk 0:00:02]}  Rb5+ {[%clk 0:00:06]} 60. Ka3 {[%clk 0:00:01]}  h3 {[%clk 0:00:06]} 61. g5 {[%clk 0:00:01]}  Rc5 {[%clk 0:00:06]} 62. g6 {[%clk 0:00:01]}  Rxc6 {[%clk 0:00:06]} 63. g7 {[%clk 0:00:02]}  Ra6+ {[%clk 0:00:06]} 64. Kb4 {[%clk 0:00:02]}  Rb6+ {[%clk 0:00:06]} 65. Kc5 {[%clk 0:00:02]}  Rb8 {[%clk 0:00:07]} 66. Rf8 {[%clk 0:00:03]}  Rb1 {[%clk 0:00:06]} 67. g8=Q+ {[%clk 0:00:03]}  Kh2 {[%clk 0:00:06]} 68. Qg4 {[%clk 0:00:03]}  Rc1+ {[%clk 0:00:07]} 69. Kd6 {[%clk 0:00:04]}  Rg1 {[%clk 0:00:07]} 70. Qe2+ {[%clk 0:00:04]}  Rg2 {[%clk 0:00:08]} 71. Rf2 {[%clk 0:00:04]}  Kg3 {[%clk 0:00:08]} 72. Rxg2+ {[%clk 0:00:05]}  hxg2 {[%clk 0:00:08]} 73. Qxg2+ {[%clk 0:00:05]}  Kxg2 {[%clk 0:00:08]} 74. Kxe6 {[%clk 0:00:06]} 1-0


[Site "https://www.chess.com"]

[Event "Titled Tuesday Blitz December 14 2021"]
[White "Tsydypov, Zhamsaran"]
[Black "Martins, Igor Carvalho Ribeiro"]
[WhiteFideId "4108566"]
[BlackFideId "2162962"]
[WhiteElo "2614"]
[BlackElo "2470"]
[Result "1-0"]
[Round "01"]
[TimeControl "180+1"]
[Date "2021.12.14"]
[WhiteClock "0:01:56"]
[BlackClock "0:00:56"]

1. e4 {[%clk 0:02:57]}  c5 {[%clk 0:02:59]} 2. Nf3 {[%clk 0:02:56]}  d6 {[%clk 0:02:58]} 3. d4 {[%clk 0:02:56]}  cxd4 {[%clk 0:02:58]} 4. Nxd4 {[%clk 0:02:57]}  Nf6 {[%clk 0:02:57]} 5. Nc3 {[%clk 0:02:57]}  a6 {[%clk 0:02:57]} 6. Qd3 {[%clk 0:02:57]}  Nc6 {[%clk 0:02:56]} 7. Bg5 {[%clk 0:02:54]}  e6 {[%clk 0:02:55]} 8. O-O-O {[%clk 0:02:54]}  Be7 {[%clk 0:02:55]} 9. f4 {[%clk 0:02:52]}  O-O {[%clk 0:02:53]} 10. Bxf6 {[%clk 0:02:47]}  gxf6 {[%clk 0:02:51]} 11. Nf3 {[%clk 0:02:42]}  b5 {[%clk 0:02:50]} 12. g4 {[%clk 0:02:42]}  Bb7 {[%clk 0:02:48]} 13. g5 {[%clk 0:02:42]}  fxg5 {[%clk 0:02:44]} 14. Rg1 {[%clk 0:02:42]}  Kh8 {[%clk 0:02:40]} 15. Nxg5 {[%clk 0:02:39]}  Bxg5 {[%clk 0:02:13]} 16. Rxg5 {[%clk 0:02:39]}  Qf6 {[%clk 0:02:12]} 17. Qe3 {[%clk 0:02:36]}  Rad8 {[%clk 0:02:09]} 18. Bd3 {[%clk 0:02:35]}  Nb4 {[%clk 0:02:08]} 19. Be2 {[%clk 0:02:30]}  d5 {[%clk 0:02:04]} 20. e5 {[%clk 0:02:27]}  Qh6 {[%clk 0:02:04]} 21. a3 {[%clk 0:02:23]}  Nc6 {[%clk 0:01:57]} 22. Rh5 {[%clk 0:02:23]}  d4 {[%clk 0:01:41]} 23. Rxh6 {[%clk 0:02:10]}  dxe3 {[%clk 0:01:40]} 24. Bd3 {[%clk 0:02:10]}  f5 {[%clk 0:01:05]} 25. exf6 {[%clk 0:02:05]}  Rf7 {[%clk 0:01:05]} 26. Ne4 {[%clk 0:02:03]}  Nd4 {[%clk 0:00:57]} 27. Ng5 {[%clk 0:02:02]}  Rdf8 {[%clk 0:00:56]} 28. Nxh7 {[%clk 0:01:56]} 1-0


[Site "https://www.chess.com"]

[Event "Titled Tuesday Blitz December 14 2021"]
[White "Urquhart, Ed"]
[Black "Sychev, Klementy"]
[WhiteFideId "2603748"]
[BlackFideId "4114060"]
[WhiteElo "2184"]
[BlackElo "2615"]
[Result "0-1"]
[Round "01"]
[TimeControl "180+1"]
[Date "2021.12.15"]
[WhiteClock "0:00:05"]
[BlackClock "0:00:05"]

1. e4 {[%clk 0:02:58]}  c6 {[%clk 0:02:58]} 2. Bc4 {[%clk 0:02:56]}  d5 {[%clk 0:02:58]} 3. Bb3 {[%clk 0:02:56]}  dxe4 {[%clk 0:02:54]} 4. Qh5 {[%clk 0:02:56]}  e6 {[%clk 0:02:53]} 5. Nc3 {[%clk 0:02:51]}  Nf6 {[%clk 0:02:53]} 6. Qh4 {[%clk 0:02:51]}  Nbd7 {[%clk 0:02:49]} 7. Nxe4 {[%clk 0:02:30]}  Nxe4 {[%clk 0:02:37]} 8. Qxe4 {[%clk 0:02:31]}  Nc5 {[%clk 0:02:37]} 9. Qe2 {[%clk 0:02:30]}  Nxb3 {[%clk 0:02:36]} 10. axb3 {[%clk 0:02:31]}  Be7 {[%clk 0:02:31]} 11. Nf3 {[%clk 0:02:31]}  O-O {[%clk 0:02:31]} 12. O-O {[%clk 0:02:29]}  c5 {[%clk 0:02:31]} 13. d3 {[%clk 0:02:28]}  b6 {[%clk 0:02:29]} 14. Re1 {[%clk 0:02:21]}  Bb7 {[%clk 0:02:28]} 15. Bf4 {[%clk 0:02:18]}  Re8 {[%clk 0:02:25]} 16. Ne5 {[%clk 0:02:17]}  Qd5 {[%clk 0:02:24]} 17. Qg4 {[%clk 0:02:09]}  h5 {[%clk 0:02:10]} 18. Qg3 {[%clk 0:02:09]}  Bf6 {[%clk 0:01:29]} 19. Nc4 {[%clk 0:01:54]}  Bc6 {[%clk 0:01:11]} 20. h4 {[%clk 0:01:41]}  Bxh4 {[%clk 0:00:53]} 21. Qh3 {[%clk 0:01:34]}  f6 {[%clk 0:00:49]} 22. Nd6 {[%clk 0:01:25]}  Bg5 {[%clk 0:00:37]} 23. Nxe8 {[%clk 0:01:20]}  Bxf4 {[%clk 0:00:35]} 24. Re4 {[%clk 0:01:12]}  Be5 {[%clk 0:00:25]} 25. Nxg7 {[%clk 0:00:38]}  Kxg7 {[%clk 0:00:24]} 26. Qxh5 {[%clk 0:00:38]}  f5 {[%clk 0:00:21]} 27. Qg5+ {[%clk 0:00:35]}  Kf7 {[%clk 0:00:18]} 28. Rh4 {[%clk 0:00:35]}  Rg8 {[%clk 0:00:16]} 29. Rh7+ {[%clk 0:00:34]}  Rg7 {[%clk 0:00:16]} 30. Rxg7+ {[%clk 0:00:35]}  Bxg7 {[%clk 0:00:16]} 31. Rxa7+ {[%clk 0:00:35]}  Bd7 {[%clk 0:00:14]} 32. Qd8 {[%clk 0:00:32]}  Qe5 {[%clk 0:00:06]} 33. Qxd7+ {[%clk 0:00:32]}  Kg6 {[%clk 0:00:07]} 34. Qe8+ {[%clk 0:00:31]}  Kh6 {[%clk 0:00:07]} 35. Ra1 {[%clk 0:00:26]}  Qe2 {[%clk 0:00:06]} 36. Qe7 {[%clk 0:00:23]}  Bd4 {[%clk 0:00:06]} 37. Qh4+ {[%clk 0:00:22]}  Kg6 {[%clk 0:00:06]} 38. Ra8 {[%clk 0:00:17]}  Qe1+ {[%clk 0:00:04]} 39. Kh2 {[%clk 0:00:16]}  Be5+ {[%clk 0:00:04]} 40. g3 {[%clk 0:00:10]}  Qxf2+ {[%clk 0:00:04]} 41. Kh3 {[%clk 0:00:10]}  Qf1+ {[%clk 0:00:05]} 42. Kh2 {[%clk 0:00:10]}  Qe2+ {[%clk 0:00:05]} 43. Kg1 {[%clk 0:00:10]}  Bd4+ {[%clk 0:00:05]} 44. Kh1 {[%clk 0:00:09]}  Qf3+ {[%clk 0:00:04]} 45. Kh2 {[%clk 0:00:08]}  Qxa8 {[%clk 0:00:04]} 46. g4 {[%clk 0:00:05]}  Be5+ {[%clk 0:00:04]} 47. Kg1 {[%clk 0:00:05]}  Bd4+ {[%clk 0:00:04]} 48. Kh2 {[%clk 0:00:05]}  Qb8+ {[%clk 0:00:04]} 49. Kg2 {[%clk 0:00:04]}  Qb7+ {[%clk 0:00:05]} 50. Kh2 {[%clk 0:00:05]}  Qh7 {[%clk 0:00:05]} 51. gxf5+ {[%clk 0:00:05]}  exf5 {[%clk 0:00:05]} 0-1


[Site "https://www.chess.com"]